Cogmind - Beta 9.1 --- EXPLORER MODE // 2019.10.30 @ 18:35:24 Player: HexDSL Result: Destroyed by P-60 Hacker with Shock Rifle Performance ------------- Evolutions (4) 2000 Regions Visited (6) 1200 Robots Destroyed (68) 340 Value Destroyed (2443) 2443 Prototype IDs (3) 60 Alien Tech Used (0) 0 Bonus (51) 51 TOTAL SCORE: 6094 Bonus ------- High Alert Combat Kills 51 Cogmind --------- Core Integrity 0/850 Matter 194/300 Energy 100/100 System Corruption 1% Temperature Cool (0) Location -6/Factory Parts ------- Power (4) Propulsion (4) Utility (5) Weapon (3) Inventory (4) Compact Battery (300) Compact Battery (300) Advanced Sensor Array Improved Core Shielding Peak State ------------ Power (None) Propulsion Improved Carbon-fiber Leg Armored Leg Utility Improved Cooling System Compact Battery Advanced Sensor Array Utility Shielding Drone Bay Weapon Flak Cannon Long-range Missile Launcher Inventory (Empty) [Rating: 33] Favorites ----------- Power Light Ion Engine Engine Light Ion Engine Power Core Micro Nuclear Core Propulsion Light Treads Treads Light Treads Leg Armored Leg Flight Unit Flight Unit Utility Utility Shielding Device Improved Cooling System Storage Compact Battery Processor Improved Signal Interpreter Protection Utility Shielding Weapon Light Assault Rifle Energy Gun Small Laser Energy Cannon Heavy Ion Cannon Ballistic Gun Light Assault Rifle Ballistic Cannon Flak Cannon Launcher Heavy Rocket Launcher Build | -11 -10 -9 -9 -8 -7 -6 ------- Run | Scr Mat Mat Min Mat Fac Fac Slots Evolved 9 | . 1 2 . 2 2 2 Power 3 | . 1 1 . 1 . . Propulsion 2 | . . . . . 2 . Utility 3 | . . 1 . . . 2 Weapon 1 | . . . . 1 . . Parts Attached 52 | 7 1 4 1 17 12 10 Power 11 | 1 1 1 . 3 5 . Engine 8 | 1 1 1 . 3 2 . Core 3 | . . . . . 3 . Reactor . | . . . . . . . Propulsion 12 | 2 . 1 . 5 2 2 Treads 7 | 2 . 1 . 2 2 . Leg 4 | . . . . 2 . 2 Wheel . | . . . . . . . Hover . | . . . . . . . Flight 1 | . . . . 1 . . Utility 12 | 2 . 1 1 2 1 5 Device 4 | . . . . . . 4 Storage 1 | . . . . . . 1 Processor 1 | . . . . 1 . . Hackware . | . . . . . . . Protection 6 | 2 . 1 1 1 1 . Artifact . | . . . . . . . Weapon 17 | 2 . 1 . 7 4 3 Energy Gun 6 | . . 1 . 3 1 1 Energy Cannon 2 | . . . . . 2 . Ballistic Gun 6 | 2 . . . 4 . . Ballistic Cannon 1 | . . . . . . 1 Launcher 2 | . . . . . 1 1 Special Weapon . | . . . . . . . Impact Weapon . | . . . . . . . Slashing Weapon . | . . . . . . . Piercing Weapon . | . . . . . . . Special Melee Weapon . | . . . . . . . Unidentified Prototypes 1 | . . . . . 1 . Parts Lost 39 | . . 5 4 6 11 13 Power 10 | . . 1 2 1 3 3 Propulsion 8 | . . . 2 1 3 2 Utility 7 | . . 2 . . 1 4 Weapon 14 | . . 2 . 4 4 4 Highest Loss Streak 6 | . . 3 4 3 6 5 Average Slot Usage (%) 74 | . 98 85 43 48 86 26 Engine 14 | . 23 23 15 9 12 1 Core 4 | . . . . . 11 2 Treads 16 | . 25 19 11 1 22 . Protection 19 | . 25 27 15 16 20 4 Energy Gun 1 | . . 3 . 5 . . Energy Cannon 2 | . . . . . 5 1 Ballistic Gun 8 | . 25 11 . 5 6 . Launcher 2 | . . . . . 5 2 Naked Turns 84 | . . . . . . 84 Heaviest Build 43 | 10 15 21 10 16 43 31 Greatest Support 86 | 40 40 40 40 40 86 34 Greatest Overweight (x) 10 | . . . 3 5 10 10 Average Overweight (x) . | . . . . 1 . 1 Largest Inventory Capacity 4 | 4 4 4 4 4 4 4 Average Capacity 4 | 4 4 4 4 4 4 4 Most Carried 4 | 4 4 4 2 4 4 4 Average Carried 2 | . 2 2 1 1 2 1 Final Capacity 4 | 4 4 4 4 4 4 4 Final Carried 4 | 1 4 2 1 3 1 4 Class Distribution -------------------- 67% | Mutant 23% | Scavenger-Tank 6% | Scavenger-Mutant Dominant Class ---------------- Mutant | -10/Materials Mutant | -9/Materials Mutant | -9/Mines Mutant | -8/Materials Scavenger-Tank | -7/Factory Mutant | -6/Factory Resources | -11 -10 -9 -9 -8 -7 -6 ----------- Run | Scr Mat Mat Min Mat Fac Fac Matter Collected 1255 | 91 249 123 . 223 477 92 Remotely . | . . . . . . . Salvage Created 1973 | . 199 293 . 484 965 32 Parts 119 | . 12 26 . 25 55 1 Haulers Intercepted . | . . . . . . . Recyclers Shooed 1 | . 1 . . . . . Parts Field Recycled . | . . . . . . . Retrieved Matter . | . . . . . . . Parts Self-Destructed . | . . . . . . . Prevented . | . . . . . . . Kills | -11 -10 -9 -9 -8 -7 -6 ------- Run | Scr Mat Mat Min Mat Fac Fac Combat Hostiles Destroyed 52 | . 7 7 . 12 23 3 Guns 29 | . 7 7 . 11 4 . Cannons 5 | . . . . . 5 . AOE 17 | . . . . . 14 3 Classes Destroyed 12 | . 2 1 . 4 5 . Worker 5 | . . . . . 3 2 Builder 5 | . . 1 . 1 3 . Recycler 3 | . . . . . 3 . Operator 1 | . . . . . 1 . Watcher 2 | . . . . . 2 . Swarmer 10 | . 4 . . 4 2 . Grunt 33 | . 3 7 . 4 16 3 Brawler 1 | . . . . 1 . . Duelist 2 | . . . . 1 1 . Sentry 3 | . . . . 1 2 . Hunter 1 | . . . . 1 . . Programmer 2 | . . . . . 2 . Best Kill Streak 9 | . 4 2 . 6 9 5 Combat Bots Only 6 | . 4 2 . 6 5 3 Max Kills in Single Turn 4 | . 2 1 . 1 4 2 Gunslinging 1 | . 1 . . . . . Exploded 3 | . . . . . 3 2 Melee . | . . . . . . . Uniques/NPCs Destroyed . | . . . . . . . Combat | -11 -10 -9 -9 -8 -7 -6 -------- Run | Scr Mat Mat Min Mat Fac Fac Damage Taken 5228 | . 216 678 206 895 1323 1910 Core 1686 | . 38 105 120 365 207 851 Absorbed by Shields . | . . . . . . . Core Remaining (%) 66 | 100 84 . 43 33 70 . Volleys Fired 155 | . 15 41 . 48 41 10 Largest 3 | . 2 2 . 3 3 1 Hottest 124 | . 40 60 . 124 124 80 Shots Fired 263 | . 30 51 . 70 102 10 Gun 191 | . 30 51 . 70 37 3 Cannon 31 | . . . . . 31 . Launcher 41 | . . . . . 34 7 Special . | . . . . . . . Kinetic 140 | . 30 37 . 38 35 . Thermal 80 | . . 14 . 32 31 3 Explosive 41 | . . . . . 34 7 Electromagnetic 2 | . . . . . 2 . Robot Hit Streak 38 | . 9 38 . 21 28 14 Robot Miss Streak 2 | . 2 1 . 1 1 . Penetration Max . | . . . . . . . Secondary Targets 4 | . 3 . . 1 . . Max Gunslinging Chain 1 | . 1 . . 1 . . Shots Hit Robots 223 | . 24 47 . 63 79 10 Core Hits 155 | . 12 22 4 29 69 19 Critical Hits . | . . . . . . . Critical Kills . | . . . . . . . Critical Parts Destroyed . | . . . . . . . Melee Attacks . | . . . . . . . Impact . | . . . . . . . Slashing . | . . . . . . . Piercing . | . . . . . . . Sneak Attacks . | . . . . . . . Combat Hostiles . | . . . . . . . Follow-up Attacks . | . . . . . . . Damage Inflicted 6426 | . 224 557 25 967 3444 1209 Guns 2021 | . 224 557 . 963 204 73 Cannons 716 | . . . . . 716 . Explosions 3592 | . . . . . 2508 1084 Melee . | . . . . . . . Ramming 97 | . . . 25 4 16 52 Kinetic 1319 | . 224 400 . 519 176 . Thermal 1644 | . . 157 . 444 970 73 Explosive 3302 | . . . . . 2218 1084 Electromagnetic 64 | . . . . . 64 . Impact . | . . . . . . . Slashing . | . . . . . . . Piercing . | . . . . . . . Highest Corruption 5 | . . . 1 . 5 1 Average Corruption 2 | . . . 1 . 3 1 Corruption Purged . | . . . . . . . Effects 4 | . . . . . 2 2 Message Errors 2 | . . . . . 1 1 Matter Fused 1 | . . . . . 1 . Data Loss (minor) 1 | . . . . . . 1 Overload Shots . | . . . . . . . Overflow Damage 230 | . . . . . 151 79 Projectiles 6 | . . . . . 6 . Explosions 224 | . . . . . 145 79 Melee . | . . . . . . . Knockbacks 2 | . . . . . 2 . Impact 2 | . . . . . 2 . Kinetic . | . . . . . . . Secondary . | . . . . . . . Self-Inflicted Damage 442 | . . . 12 2 225 203 Shots 16 | . . . . . 12 4 Rammed 25 | . . . 5 1 2 17 Targets Rammed 25 | . . . 5 1 2 17 Kicked . | . . . . . . . Crushed . | . . . . . . . Highest Temperature 339 | . 33 182 . 339 327 36 Average Temperature 96 | . 10 71 . 154 98 17 Received Heat Transfer 2553 | . 123 540 138 486 378 888 Effects 4 | . . . . 3 1 . Interference 4 | . . . . 3 1 . Siege Activations . | . . . . . . . Robots Corrupted . | . . . . . . . Combat Hostiles . | . . . . . . . Parts Fried . | . . . . . . . Impact Corruptions . | . . . . . . . Robots Melted 1 | . . . . 1 . . Combat Hostiles 1 | . . . . 1 . . Parts Melted 2 | . . . . 1 1 . Heat Transferred 2622 | . . 350 . 999 1162 111 Parts Sabotaged . | . . . . . . . Parts Stolen . | . . . . . . . Parts Stripped . | . . . . . . . Power Chain Reactions 1 | . . . . . 1 . Missiles Intercepted . | . . . . . . . Alert | -11 -10 -9 -9 -8 -7 -6 ------- Run | Scr Mat Mat Min Mat Fac Fac Peak Influence 553 | . 124 132 6 322 553 174 Average Influence 115 | . 66 29 3 137 199 103 Maximum Alert Level 2 | . . . . 1 2 . Low Security (%) 80 | . . . . . . . Level 1 11 | . . . . . . . Level 2 7 | . . . . . . . Level 3 . | . . . . . . . Level 4 . | . . . . . . . Level 5 . | . . . . . . . High Security . | . . . . . . . Max Security . | . . . . . . . Squads Dispatched 16 | . . 2 . 4 9 1 Investigation 2 | . . . . 1 1 . Extermination 3 | . . . . . 3 . Reinforcement 7 | . . 2 . . 4 1 Assault 1 | . . . . . 1 . Garrison 3 | . . . . 3 . . Intercept . | . . . . . . . Construction Impeded 1 | . . . . . 1 . Haulers Reinforced 1 | . . . . . 1 . Stealth | -11 -10 -9 -9 -8 -7 -6 --------- Run | Scr Mat Mat Min Mat Fac Fac Distress Signals 5 | . 2 . . 1 1 1 Communications Jammed . | . . . . . . . Distress Signals . | . . . . . . . Times Spotted 99 | . 9 20 5 19 32 14 Peak Tracking Total 10 | . 3 5 4 7 4 10 Tactical Retreats 9 | . . 2 1 2 2 2 Traps | -11 -10 -9 -9 -8 -7 -6 ------- Run | Scr Mat Mat Min Mat Fac Fac Traps Triggered 1 | . . 1 . . . . Indirectly . | . . . . . . . Trap Hack Attempts . | . . . . . . . Triggered . | . . . . . . . Disarmed . | . . . . . . . Reprogrammed . | . . . . . . . Reused . | . . . . . . . Traps Extracted . | . . . . . . . Installed . | . . . . . . . Triggered . | . . . . . . . Machines | -11 -10 -9 -9 -8 -7 -6 ---------- Run | Scr Mat Mat Min Mat Fac Fac Machines Disabled 16 | . 1 . . . 11 4 Max in Single Turn 2 | . 1 . . . 2 2 Garrison Access 1 | . . . . . 1 . Machines Sabotaged . | . . . . . . . Garrisons Compromised . | . . . . . . . Overloaded Fab Kills . | . . . . . . . Fab Network Shutdowns . | . . . . . . . Hacking | -11 -10 -9 -9 -8 -7 -6 --------- Run | Scr Mat Mat Min Mat Fac Fac Machines Accessed 7 | . 2 1 . 2 2 . Terminals 6 | . 1 1 . 2 2 . Fabricators . | . . . . . . . Repair Stations . | . . . . . . . Recycling Units 1 | . 1 . . . . . Scanalyzers . | . . . . . . . Garrison Access . | . . . . . . . Total Hacks 18 | . 3 5 . 5 5 . Successful 13 | . 1 5 . 4 3 . Failed 5 | . 2 . . 1 2 . Catastrophic . | . . . . . . . Database Lockouts . | . . . . . . . Manual . | . . . . . . . Terminals 17 | . 2 5 . 5 5 . Fabricators . | . . . . . . . Repair Stations . | . . . . . . . Recycling Units 1 | . 1 . . . . . Scanalyzers . | . . . . . . . Garrison Access . | . . . . . . . Terminal Hacks 12 | . . 5 . 4 3 . Record 6 | . . 3 . 3 . . Prototype ID Bank 1 | . . 1 . . . . Alert Level 1 | . . 1 . . . . Unreport Threat 1 | . . . . . 1 . Extermination Status 1 | . . . . . 1 . Recall Reinforcements 1 | . . . . . 1 . Recall Assault 1 | . . . . 1 . . Fabricator Hacks . | . . . . . . . Repair Station Hacks . | . . . . . . . Recycling Unit Hacks 1 | . 1 . . . . . Process 1 | . 1 . . . . . Scanalyzer . | . . . . . . . Garrison Access Hacks . | . . . . . . . Unauthorized Hacks . | . . . . . . . Terminals . | . . . . . . . Fabricators . | . . . . . . . Repair Stations . | . . . . . . . Recycling Units . | . . . . . . . Scanalyzers . | . . . . . . . Garrison Access . | . . . . . . . Data Cores Recovered . | . . . . . . . Used . | . . . . . . . Hacking Detections 2 | . . . . 1 1 . Full Trace Events 2 | . . . . 1 1 . Feedback Events . | . . . . . . . Feedback Blocked . | . . . . . . . Robot Schematics Acquired . | . . . . . . . Robots Built . | . . . . . . . Matter . | . . . . . . . Time . | . . . . . . . Total Robot Build Rating . | . . . . . . . Part Schematics Acquired . | . . . . . . . Parts Built . | . . . . . . . Matter . | . . . . . . . Time . | . . . . . . . Total Part Build Rating . | . . . . . . . Parts Repaired . | . . . . . . . Time . | . . . . . . . Parts Recycled . | . . . . . . . Recycled Matter 3 | . 3 . . . . . Retrieved Matter . | . . . . . . . Retrieved Components . | . . . . . . . Parts Scanalyzed . | . . . . . . . Part Schematics Acquired . | . . . . . . . Parts Damaged . | . . . . . . . Bothacking | -11 -10 -9 -9 -8 -7 -6 ------------ Run | Scr Mat Mat Min Mat Fac Fac Used RIF Installer . | . . . . . . . Robots Hacked . | . . . . . . . Non-combat . | . . . . . . . Combat . | . . . . . . . Robot Hacks Applied . | . . . . . . . Relay Couplers Released . | . . . . . . . Robots Rewired . | . . . . . . . Allies Hacked . | . . . . . . . Hacks Repelled . | . . . . . . . Allies | -11 -10 -9 -9 -8 -7 -6 -------- Run | Scr Mat Mat Min Mat Fac Fac Total Allies . | . . . . . . . Largest Group . | . . . . . . . Highest-Rated Group . | . . . . . . . Highest-Rated Ally . | . . . . . . . Total Orders . | . . . . . . . Ally Attacks . | . . . . . . . Total Damage . | . . . . . . . Kills . | . . . . . . . Allies Corrupted . | . . . . . . . Allies Melted . | . . . . . . . Intel | -11 -10 -9 -9 -8 -7 -6 ------- Run | Scr Mat Mat Min Mat Fac Fac Robot Analysis Total . | . . . . . . . Derelict Logs Recovered . | . . . . . . . Drone Launches 2 | . . . . . . 2 Drone Recoveries . | . . . . . . . Exploration | -11 -10 -9 -9 -8 -7 -6 ------------- Run | Scr Mat Mat Min Mat Fac Fac Turns Passed 4153 | 112 534 884 121 454 1512 536 Spaces Moved 2450 | 73 304 492 92 261 845 383 Core 614 | 17 . . 43 231 1 322 Treads 1767 | 56 304 492 49 22 844 . Legs 69 | . . . . 8 . 61 Wheels . | . . . . . . . Hover . | . . . . . . . Flight . | . . . . . . . Fastest Speed 50 | 50 160 160 50 50 160 50 Average Speed 148 | 134 160 160 125 118 161 122 Slowest Speed 550 | 160 160 160 200 300 550 550 Overloaded Moves . | . . . . . . . Propulsion Burnouts . | . . . . . . . Robots Hopped . | . . . . . . . Cave-ins Triggered . | . . . . . . . Exploration Rate (%) 25 | 4 49 38 29 24 22 13 Regions Visited 6 Branch Regions 1 Pre-discovered Areas . | . . . . . . . Known Exits Taken 6 | 1 1 1 1 1 1 . Unknown Exits Taken . | . . . . . . . Scrap Searched . | . . . . . . . Spaces Dug 19 | . . . . . 19 . Terrain Destroyed 418 | . . . . . 388 30 Melee . | . . . . . . . Projectile 3 | . . . . . 3 . AOE 415 | . . . . . 385 30 Actions | -11 -10 -9 -9 -8 -7 -6 --------- Run | Scr Mat Mat Min Mat Fac Fac Total 2761 | 87 325 541 97 346 928 437 Wait . | . . . . . . . Move 2445 | 72 303 491 92 260 844 383 Hop . | . . . . . . . Pick Up 62 | 8 5 3 . 16 18 12 Fast Attach . | . . . . . . . Attach 49 | 7 1 4 1 14 12 10 Detach 6 | . . . . 2 1 3 Swap 3 | . . . . 3 . . Drop 17 | . 1 2 . 2 10 2 Fire 155 | . 15 41 . 48 41 10 Melee . | . . . . . . . Ram 22 | . . . 4 1 . 17 Kick . | . . . . . . . Crush 2 | . . . . . 2 . Escape Stasis . | . . . . . . . Rewire . | . . . . . . . Trap . | . . . . . . . Miscellaneous . | . . . . . . . Route ------- -11/Scrapyard -10/Materials (discovered 2 exits: *Mat / *Min) -9/Materials -9/Mines -8/Materials -7/Factory -6/Factory History --------- Turn | Location | Event 5 | -11/Scrapyard | Identified exit to Materials 5 | -11/Scrapyard | Discovered exit to Materials (range 16) 113 | -11/Scrapyard | Entered Materials 113 | -10/Materials | Evolved 1 slot: Power x1 207 | -10/Materials | Identified exit to Mines 207 | -10/Materials | Discovered exit to Mines (range 15) 301 | -10/Materials | Build established: Mutant 602 | -10/Materials | Identified exit to Materials 602 | -10/Materials | Discovered exit to Materials (range 10) 647 | -10/Materials | Entered another Materials area 647 | -9/Materials | Evolved 2 slots: Power x1, Utility x1 1479 | -9/Materials | Identified exit to Mines 1479 | -9/Materials | Discovered exit to Mines (range 12) 1531 | -9/Materials | Entered Mines 1561 | -9/Mines | Lost 3 parts (2u1w) 1636 | -9/Mines | Identified exit to Materials 1636 | -9/Mines | Discovered exit to Materials (range 9) 1643 | -9/Mines | Received a Rocket Launcher from a helpful Derelict 1652 | -9/Mines | Core integrity fell below 50% 1652 | -9/Mines | Entered Materials 1652 | -8/Materials | Evolved 2 slots: Power x1, Weapon x1 1672 | -8/Materials | Lost 4 parts (2p2n) 1829 | -8/Materials | Garrison activated, responded to threat 1891 | -8/Materials | Lost 3 parts (1p2w) 1896 | -8/Materials | Core integrity fell below 50% 2073 | -8/Materials | Lost 3 parts (1n2w) 2084 | -8/Materials | Identified exit to Factory 2084 | -8/Materials | Discovered exit to Factory (range 10) 2106 | -8/Materials | Entered Factory 2106 | -7/Factory | Evolved 2 slots: Propulsion x2 2820 | -7/Factory | Build established: Scavenger-Tank 3581 | -7/Factory | Build established: Mutant 3585 | -7/Factory | Identified exit to Factory 3585 | -7/Factory | Discovered exit to Factory (range 10) 3601 | -7/Factory | Lost 6 parts (2p1n1u2w) 3618 | -7/Factory | Entered another Factory area 3618 | -6/Factory | Evolved 2 slots: Utility x2 3758 | -6/Factory | Lost 5 parts (3p1u1w) 3986 | -6/Factory | Lost 4 parts (1n1u2w) 4017 | -6/Factory | Core integrity fell below 50% 4056 | -6/Factory | Lost 3 parts (1n1u1w) 4068 | -6/Factory | Core integrity fell below 20% 4154 | -6/Factory | Destroyed by P-60 Hacker with Shock Rifle Last Messages --------------- Slammed into Y-54 Guardian. Slammed into B-48 Gladiator. Arm. Leg destroyed. Slammed into B-48 Gladiator. Imp. Cooling System destroyed. Slammed into U-05 Engineer. Destabilizing: Core damaged (-42). U-05 Engineer distress signal alerts nearby ally. Acquired Fusion Compressor. Acquired Imp. Core Shielding. Fusion Compressor destroyed. K-01 Serf cleans the Power Conduit. DO NA/LKZ &,:FJ:DVVCMBOI Map ----- +----------------------------------------------------+ | | | | | | | | | | | | | | | | | | | | | | | | | | | | | ???????????????#############??????????????######## | | ???????????????# """"" ?????????????# | | ???????????????# ""T"" ! ?????????????# | | ???????????????# """ #???????????# | | ???????????????# """"" ############# | | ???????????????# ! """"" # / | | ???????????????# # ##### | | ??????????#############+####### #???# | | ??????????# # #???# | | ??????????# ! # ##/##+##### #???######## | | ??????????# # # # #??????????# | | ??????????# + p@/ # #??????????# | | ??????????# # # #+#??????????# | | ??????????# " "" # # #????????????# | | ??????????# "R"" ! # # ! #????????????+ | | ????????????""" # # #????????????# | | ????????????#########^ # / "??????????# | | ????????????????????# ^ # ! # ""?????????# | | ????????????????????# ########### ?????????# | | ????????????????????# #??????????? ??????????# | | ????????????????????# #????????????"?????????+ | | ????????????????????# #??????????????????????# | | ????????????????????# #??????????????????????# | | ????????????????????# #??????????????????????# | | ????????????????????# #??????????????????????# | | ????????????????????+ #??????????????????????# | | ????????????????????? ???????????????????????# | | ?????????????????????????????????????????????????# | | ?????????????????????????????????????????????????# | | ?????????????????????????????????????????????????# | | ?????????????????????????????????????????????????# | | ????????????????????????????????????????????????# | | ????????????????????????????????????????????????# | | ????????????????????????????????????????????????# | | ??????????????????????????????????????????????? + | | ??????????????????????????????????????????????" # | +----------------------------------------------------+ Best States ------------- Heat Dissipation 64 Energy Generation 38 Energy Capacity 490 Matter Stores 300 Matter Capacity 300 Sight Range 16 Robot Scan Range 16 Terrain Scan Density 10 Armor Coverage 150 Resistance: KI 35 Resistance: TH 35 Resistance: EX 35 Resistance: EM 35 Resistance: I 35 Resistance: S 35 Resistance: P 35 Power Shielding 66 Propulsion Shielding 33 Utility Shielding 33 Evasion (%) 50 Recoil Reduction 4 Item Schematics ----------------- None Robot Schematics ------------------ None Fabricated ------------ Nothing Alien Tech Used ----------------- None Achievements -------------- It's Just You Challenges ------------ None Game ------ Seed InsulatedMatterDesublimator Manual? 0 Play Time 00:34:06 Cumulative 7.2 hours Start 2019.10.30 @ 18:03:59 End 2019.10.30 @ 18:35:24 Sessions 1 Manual Loads 0 Difficulty Explorer Special Mode None Game No. 17 Rogue 17 Adventurer 0 Explorer 17 Win Type - Total 0 Types 0/0/0/0/0/0/0 Lore% 6 Gallery% 15 Achievement% 12 Wizard Run 0 Options --------- ASCII 0 Keyboard 1 Movement Vi Keybinds 0 Fullscreen 2 Font 18/SmallcapsGlow Map View 76x50 Tactical HUD 0 Map Filters NONE Filters NONE Steam 1 RUN: ea0d0fb9-e905-4df5-8bcf-193a92e5aea7